fUST/lending_fUST_20250622
["ID","MTS","AMOUNT","RATE_DAILY","PERIOD"]
[366860831,1750523455077,-460.0,0.00023727,2]
[366860832,1750523455087,-460.0,0.00023727,2]
[366860833,1750523455097,-576.01,0.00023727,2]
[366860834,1750523455107,-1000.0,0.00023766,2]
[366860835,1750523455116,-1484.86712792,0.000238,4]
[366860836,1750523455126,-420.0,0.00023807,2]
[366860837,1750523455135,-250.0,0.00023895,2]
[366860838,1750523455145,-799.0,0.00023919,2]
[366860839,1750523455154,-500.0,0.00023973,2]
[366860840,1750523455164,-460.0,0.00023979,2]
[366860841,1750523455173,-467.88553942,0.00023979,2]
[366860842,1750523455182,-460.0,0.00023979,2]
[366860843,1750523455191,-487.56189111,0.00023979,2]
[366860844,1750523455201,-473.54883121,0.00023979,2]
[366860845,1750523455210,-466.35496421,0.00023979,2]
[366860846,1750523455220,-472.53501842,0.00023979,2]
[366860847,1750523455231,-460.0,0.00023979,2]
[366860848,1750523455240,-519.38193976,0.00023983,2]
[366860849,1750523455250,-460.0,0.00023989,2]
[366860850,1750523455259,-460.0,0.00023989,2]
[366860851,1750523455269,-522.26,0.00023989,2]
[366860852,1750523455279,-460.0,0.00023989,2]
[366860853,1750523455289,-460.0,0.00023989,2]
[366860854,1750523455299,-576.01,0.00023989,2]
[366860855,1750523455308,-460.0,0.00023998,2]
[366860856,1750523455318,-416.71514524,0.00023998,2]
[366860857,1750523455327,-460.0,0.00023998,2]
[366860858,1750523455337,-460.0,0.00023998,2]
[366860859,1750523455346,-460.0,0.00023998,2]
[366860860,1750523455355,-460.0,0.00023998,2]
[366860861,1750523455365,-460.0,0.00023998,2]
[366860862,1750523455375,-460.0,0.00023998,2]
[366860863,1750523455384,-460.0,0.00023998,2]
[366860864,1750523455394,-313.60835259,0.00023998,2]
[366860865,1750523455403,-460.0,0.00023998,2]
[366860866,1750523455412,-1405.28,0.00023998,2]
[366860867,1750523455422,-460.0,0.00023998,2]
[366860868,1750523455431,-460.0,0.00023998,2]
[366860869,1750523455441,-460.0,0.00023998,2]
[366860870,1750523455450,-813.28,0.00023998,2]
[366860871,1750523455460,-460.0,0.00023998,2]
[366860872,1750523455469,-460.0,0.00023998,2]
[366860873,1750523455479,-460.0,0.00023998,2]
[366860874,1750523455488,-522.26,0.00023998,2]
[366860875,1750523455497,-2464.92,0.00023998,2]
[366860876,1750523455506,-460.0,0.00023998,2]
[366860877,1750523455516,-1180.54,0.00023998,2]
[366860878,1750523455526,-469.70487195,0.00023998,2]
[366860879,1750523455537,-460.0,0.00023998,2]
[366860880,1750523455547,-576.01,0.00023998,2]
[366860881,1750523455556,-151.0,0.00023998,7]
[366860882,1750523455565,-475.01,0.00023998,2]
[366860883,1750523455576,-516.0271893,0.00024016,2]
[366860884,1750523455585,-763.53011118,0.00024016,2]
[366860885,1750523455594,-654.0,0.00024028,2]
[366860886,1750523455603,-2161.0,0.00024028,2]
[366860887,1750523455614,-406.0,0.00024028,2]
[366860888,1750523455624,-965.0,0.00024028,2]
[366860889,1750523455633,-466.72535439,0.00024037,2]
[366860890,1750523455643,-460.0,0.00024037,2]
[366860891,1750523455652,-460.0,0.00024037,2]
[366860892,1750523455661,-1500.0,0.00024079,2]
[366860893,1750523455671,-1500.0,0.00024079,2]
[366860894,1750523455681,-1800.0,0.00024079,2]
[366860895,1750523455691,-907.35,0.000241,2]
[366860896,1750523455701,-460.0,0.00024109,2]
[366860897,1750523455710,-460.0,0.00024109,2]
[366860898,1750523455719,-460.0,0.00024109,2]
[366860899,1750523455728,-460.0,0.00024109,2]
[366860900,1750523455739,-482.80946723,0.00024109,2]
[366860901,1750523455749,-501.6880243,0.00024173,11]
[366860902,1750523455758,-157.748237,0.00024198,7]
[366860903,1750523455768,-1000.0,0.00024221,2]
[366860904,1750523455777,-250.0,0.00024221,2]
[366860905,1750523455786,-1500.0,0.00024314,2]
[366860906,1750523455796,-460.0,0.00024518,2]
[366860907,1750523455808,-460.0,0.00024518,2]
[366860908,1750523455818,-522.26,0.00024518,2]
[366860909,1750523455827,-460.0,0.00024518,2]
[366860910,1750523455838,-460.0,0.00024518,2]
[366860911,1750523455847,-576.01,0.00024518,2]
[366860912,1750523455857,-460.0,0.00024519,2]
[366860913,1750523455867,-460.0,0.00024519,2]
[366860914,1750523455876,-460.0,0.00024519,2]
[366860915,1750523455885,-460.0,0.00024519,2]
[366860916,1750523455895,-460.0,0.00024519,2]
[366860917,1750523455904,-460.0,0.00024519,2]
[366860918,1750523455913,-460.0,0.00024519,2]
[366860919,1750523455923,-460.0,0.00024519,2]
[366860920,1750523455932,-460.0,0.00024519,2]
[366860921,1750523455941,-1405.28,0.00024519,2]
[366860922,1750523455951,-460.0,0.00024519,2]
[366860923,1750523455961,-478.77,0.00024519,2]
[366860924,1750523455970,-813.28,0.00024519,2]
[366860925,1750523455980,-460.0,0.00024519,2]
[366860926,1750523455990,-567.98523322,0.00024519,2]
[366860927,1750523455999,-2464.92,0.00024519,2]
[366860928,1750523456008,-1180.54,0.00024519,2]
[366860929,1750523456018,-475.01,0.00024519,2]
[366860930,1750523456027,-1000.0,0.00024521,2]
[366860931,1750523456036,-460.0,0.00024556,2]
[366860932,1750523456046,-460.0,0.00024556,2]
[366860933,1750523456060,-321.61813899,0.00024559,2]
[366860934,1750523456070,-460.0,0.00024559,2]
[366860935,1750523456080,-460.0,0.00024559,2]
[366860936,1750523456090,-460.0,0.00024559,2]
[366860937,1750523456099,-460.0,0.00024559,2]
[366860938,1750523456109,-460.0,0.00024559,2]
[366860939,1750523456118,-460.0,0.00024559,2]
[366860940,1750523456194,-419.72358407,0.00024559,2]
[366860941,1750523456204,-460.0,0.00024559,2]
[366860942,1750523456214,-1405.28,0.00024559,2]
[366860943,1750523456224,-460.0,0.00024559,2]
[366860944,1750523456234,-813.28,0.00024559,2]
[366860945,1750523456243,-460.0,0.00024559,2]
[366860946,1750523456253,-749.27617258,0.00024559,2]
[366860947,1750523456505,-1169.57153898,0.000219,6]
[366860948,1750523456515,-179.30378607,0.00021916,2]
[366860949,1750523456529,-465.80690721,0.00021917,2]
[366860950,1750523456542,-460.0,0.00021917,2]
[366860951,1750523456551,-379.00468114,0.00021917,2]
[366860952,1750523456561,-1169.57153894,0.00022038,6]
[366860953,1750523456571,-151.0,0.00022356,7]
[366860954,1750523456583,-151.0,0.00022919,7]
[366860955,1750523456593,-151.0,0.00022999,7]
[366860956,1750523456603,-275.552746,0.0002314,7]
[366860957,1750523456614,-500.0,0.00023438,2]
[366860958,1750523456623,-151.0,0.00023438,2]
[366860959,1750523456633,-151.0,0.00023463,7]
[366860960,1750523456642,-500.0,0.00023465,2]
[366860961,1750523456652,-51.52947687,0.00023493,2]
[366860962,1750523456670,-448.47052313,0.00023493,2]
[366860963,1750523456680,-514.60943347,0.0002352,2]
[366860964,1750523456689,-151.0,0.00023659,7]
[366860965,1750523456699,-151.0,0.00024068,7]
[366860966,1750523456709,-1715.64382742,0.00024559,2]
[366860967,1750523456719,-1180.54,0.00024559,2]
[366860968,1750523456728,-475.01,0.00024559,2]
[366860969,1750523456738,-500.0,0.00024573,2]
[366860970,1750523456749,-500.0,0.00024573,2]
[366860971,1750523456760,-500.0,0.00024573,2]
[366860972,1750523456770,-460.0,0.00024597,2]
[366860973,1750523456782,-460.0,0.00024597,2]
[366860974,1750523456792,-522.26,0.00024597,2]
[366860975,1750523456801,-460.0,0.00024597,2]
[366860976,1750523456810,-460.0,0.00024597,2]
[366860977,1750523456820,-576.01,0.00024597,2]
[366860978,1750523456830,-2000.0,0.000246,2]
[366860979,1750523456839,-2000.0,0.00024627,2]
[366860980,1750523456848,-2000.0,0.00024627,2]
[366860981,1750523456858,-2400.0,0.00024627,2]
[366860982,1750523456867,-460.0,0.00024645,2]
[366860983,1750523456877,-481.56739654,0.00024645,2]
[366860984,1750523456887,-460.0,0.00024655,2]
[366860985,1750523456896,-460.0,0.00024655,2]
[366860986,1750523456906,-460.0,0.00024655,2]
[366860987,1750523456915,-460.0,0.00024655,2]
[366860988,1750523456925,-460.0,0.00024655,2]
[366860989,1750523456934,-460.0,0.00024655,2]
[366860990,1750523456944,-460.0,0.00024655,2]
[366860991,1750523456954,-460.0,0.00024655,2]
[366860992,1750523456963,-1405.28,0.00024655,2]
[366860993,1750523456973,-460.0,0.00024655,2]
[366860994,1750523456983,-228.52,0.00024655,2]
[366860995,1750523456993,-813.28,0.00024655,2]
[366860996,1750523457002,-50.32288441,0.00024655,2]
[366860997,1750523457041,-409.67711559,0.00024655,2]
[366860998,1750523457051,-460.0,0.00024655,2]
[366860999,1750523457062,-460.0,0.00024655,2]
[366861000,1750523457071,-460.0,0.00024655,2]
[366861001,1750523457081,-460.0,0.00024655,2]
[366861002,1750523457091,-460.0,0.00024655,2]
[366861003,1750523457100,-309.13,0.00024655,2]
[366861004,1750523457109,-522.26,0.00024655,2]
[366861005,1750523457119,-522.26,0.00024655,2]
[366861006,1750523457129,-311.06051876,0.00024655,2]
[366861007,1750523457141,-211.19948124,0.00024655,2]
[366861008,1750523457150,-456.87388276,0.00024655,2]
[366861009,1750523457383,-1169.57153894,0.00022176,6]
[366861010,1750523457393,-1169.57153894,0.00022314,7]
[366861011,1750523457403,-151.0,0.00022356,7]
[366861012,1750523457412,-1169.57153894,0.00022452,7]
[366861013,1750523457421,-1169.57153894,0.0002259,7]
[366861014,1750523457431,-1169.57153894,0.00022728,7]
[366861015,1750523457440,-1169.57153894,0.00022866,8]
[366861016,1750523457449,-269.533638,0.00022999,7]
[366861017,1750523457459,-1169.57153894,0.00023003,8]
[366861018,1750523457469,-1169.57153894,0.00023141,8]
[366861019,1750523457478,-1169.57153894,0.00023279,8]
[366861020,1750523457488,-1169.57153894,0.00023417,9]
[366861021,1750523457497,-151.0,0.00023438,2]
[366861022,1750523457507,-151.000001,0.00023438,2]
[366861023,1750523457516,-151.0,0.00023465,2]
[366861024,1750523457525,-65.38611724,0.00024655,2]
[366861025,1750523457535,-522.26,0.00024655,2]
[366861026,1750523457549,-522.26,0.00024655,2]
[366861027,1750523457557,-522.26,0.00024655,2]
[366861028,1750523457566,-522.26,0.00024655,2]
[366861029,1750523457575,-390.97813766,0.00024655,2]
[366861031,1750523579331,-150.0,0.00021559,2]
[366861032,1750523579357,-500.0,0.00021916,2]
[366861033,1750523579382,-500.0,0.00021916,2]
[366861034,1750523579409,-573.58017416,0.00021916,2]
[366861035,1750523579431,-300.0,0.00021916,2]
[366861036,1750523579455,-179.30378607,0.00021916,2]
[366861037,1750523579477,-342.11603977,0.00021917,2]
[366861039,1750523850218,-3392.7176167,0.00020238,2]
[366861040,1750523850240,-300.0,0.00020846,2]
[366861041,1750523850262,-300.0,0.00020846,2]
[366861042,1750523850284,-18431.2823833,0.00020847,2]
[366861044,1750523864603,164.012344,0.00013699,2]
[366861045,1750523917611,-472.0,0.00020847,2]
[366861062,1750524348139,-2099.40565153,0.00020639,2]
[366861063,1750524348162,-596.30089602,0.00020847,2]
[366861064,1750524432092,-3261.09288913,0.00020639,2]
[366861065,1750524432115,-2.34560418,0.00020847,2]
[366861066,1750524437092,-5398.0711165,0.00020847,2]
[366861067,1750524437114,-158.79280517,0.00021102,5]
[366861068,1750524437135,-524.79406107,0.0002114,2]
[366861069,1750524437157,-164.012344,0.00021404,2]
[366861070,1750524437178,-300.0,0.00021497,2]
[366861071,1750524437200,-300.0,0.00021498,2]
[366861072,1750524437220,-300.0,0.00021499,2]
[366861073,1750524437240,-504.15,0.000215,2]
[366861074,1750524437262,-489.25174557,0.00021817,2]
[366861075,1750524437283,-1413.93888388,0.00021817,2]
[366861076,1750524437303,-1413.93888387,0.00021831,2]
[366861077,1750524437323,-1413.93888387,0.00021845,2]
[366861078,1750524437344,-1413.93888387,0.00021858,2]
[366861079,1750524437365,-1413.93888387,0.00021872,2]
[366861080,1750524437391,-1091.60010303,0.000219,6]
[366861081,1750524437412,-304.74,0.00021907,3]
[366861082,1750524437433,-152.37,0.00021907,3]
[366861083,1750524437454,-457.13,0.00021907,3]
[366861084,1750524437476,-450.49,0.00021907,10]
[366861085,1750524437499,-179.30378607,0.00021916,2]
[366861086,1750524437522,-179.30378607,0.00021916,2]
[366861087,1750524437546,-179.30378607,0.00021916,2]
[366861088,1750524437567,-179.30378607,0.00021916,2]
[366861089,1750524437588,-160.0,0.00021916,2]
[366861090,1750524437608,-500.0,0.00021916,7]
[366861091,1750524437628,-157.88396023,0.00021917,2]
[366861092,1750524437648,-400.0,0.00021917,2]
[366861093,1750524437668,-465.84350371,0.00021917,2]
[366861094,1750524437689,-460.0,0.00021917,2]
[366861095,1750524437709,-241.12684815,0.00021917,2]
[366861096,1750524437728,-460.0,0.00021917,2]
[366861097,1750524437749,-383.01188202,0.00021917,2]
[366861098,1750524437769,-218.62961697,0.00021917,2]
[366861099,1750524437790,-460.0,0.00021917,2]
[366861100,1750524437812,-405.18193568,0.00021917,2]
[366861101,1750524437833,-460.0,0.00021917,2]
[366861102,1750524437853,-574.49270441,0.00021917,2]
[366861103,1750524437971,-460.0,0.00021917,2]
[366861104,1750524437994,-461.2851877,0.00021917,2]
[366861105,1750524438015,-460.0,0.00021917,2]
[366861106,1750524438036,-460.0,0.00021917,2]
[366861107,1750524438059,-461.78992662,0.00021917,2]
[366861108,1750524438082,-460.0,0.00021917,2]
[366861109,1750524438102,-460.0,0.00021917,2]
[366861110,1750524438123,-492.24077613,0.00021917,2]
[366861111,1750524438144,-405.46271367,0.00021917,2]
[366861112,1750524438167,-460.0,0.00021917,2]
[366861113,1750524438188,-460.0,0.00021917,2]
[366861114,1750524438210,-472.55842908,0.00021917,2]
[366861115,1750524438231,-462.73509186,0.00021917,2]
[366861116,1750524438252,-460.0,0.00021917,2]
[366861117,1750524438273,-376.6514674,0.00021917,2]
[366861118,1750524438296,-460.0,0.00021917,2]
[366861119,1750524438320,-460.0,0.00021917,2]
[366861120,1750524438343,-471.58613462,0.00021917,2]
[366861121,1750524438364,-460.0,0.00021917,2]
[366861122,1750524438386,-453.99668893,0.00021917,2]
[366861123,1750524438408,-460.0,0.00021917,2]
[366861124,1750524438428,-460.0,0.00021917,2]
[366861125,1750524438449,-460.0,0.00021917,2]
[366861126,1750524438472,-473.46907748,0.00021917,2]
[366861127,1750524438493,-434.66145994,0.00021917,2]
[366861128,1750524438515,-287.91233316,0.00021917,2]
[366861129,1750524438537,-506.77225842,0.00021917,2]
[366861130,1750524438558,-322.179218,0.00021917,2]
[366861131,1750524438579,-460.0,0.00021917,2]
[366861132,1750524438600,-460.0,0.00021917,2]
[366861133,1750524438622,-465.03737209,0.00021917,2]
[366861134,1750524438643,-460.0,0.00021917,2]
[366861135,1750524438665,-460.0,0.00021917,2]
[366861136,1750524438686,-427.88930111,0.00021917,2]
[366861137,1750524438708,-460.0,0.00021917,2]
[366861138,1750524438730,-441.76463578,0.00021917,2]
[366861139,1750524438753,-460.0,0.00021917,2]
[366861140,1750524438775,-473.8425891,0.00021917,2]
[366861141,1750524438797,-406.87191575,0.00021917,2]
[366861142,1750524438819,-300.0,0.00021917,2]
[366861143,1750524438842,-460.0,0.00021917,2]
[366861144,1750524438864,-150.0,0.00021917,2]
[366861145,1750524438886,-460.0,0.00021917,2]
[366861146,1750524438908,-290.77228399,0.00021917,2]
[366861147,1750524438930,-460.0,0.00021917,2]
[366861148,1750524438952,-425.26219046,0.00021917,2]
[366861149,1750524438974,-460.0,0.00021917,2]
[366861150,1750524438995,-416.80915147,0.00021917,2]
[366861151,1750524439018,-522.73462613,0.00021917,2]
[366861152,1750524439040,-460.0,0.00021917,2]
[366861153,1750524439066,-436.95386115,0.00021917,2]
[366861154,1750524439088,-460.0,0.00021917,2]
[366861155,1750524439112,-460.0,0.00021917,2]
[366861156,1750524439136,-460.0,0.00021917,2]
[366861157,1750524439160,-460.0,0.00021917,2]
[366861158,1750524439183,-310.23055379,0.00021917,2]
[366861159,1750524439208,-455.39795241,0.00021917,2]
[366861160,1750524439233,-460.0,0.00021917,2]
[366861161,1750524439256,-460.0,0.00021917,2]
[366861162,1750524439280,-358.36902913,0.00021917,2]
[366861163,1750524439302,-437.27164428,0.00021917,2]
[366861164,1750524439324,-461.40631368,0.00021917,2]
[366861165,1750524439348,-500.0,0.00021917,2]
[366861166,1750524439370,-460.0,0.00021917,2]
[366861167,1750524439392,-461.8907012,0.00021917,2]
[366861168,1750524439415,-472.07841007,0.00021917,2]
[366861169,1750524439438,-460.0,0.00021917,2]
[366861170,1750524439461,-460.0,0.00021917,2]
[366861171,1750524439484,-460.0,0.00021917,2]
[366861172,1750524439507,-476.23471879,0.00021917,2]
[366861173,1750524439529,-460.0,0.00021917,2]
[366861174,1750524439551,-463.57086128,0.00021917,2]
[366861175,1750524439573,-460.0,0.00021917,2]
[366861176,1750524439594,-472.93545607,0.00021917,2]
[366861177,1750524439616,-469.30480398,0.00021917,2]
[366861178,1750524439638,-460.0,0.00021917,2]
[366861179,1750524439660,-464.11335765,0.00021917,2]
[366861180,1750524439683,-474.92549669,0.00021917,2]
[366861181,1750524439705,-460.0,0.00021917,2]
[366861182,1750524439725,-460.0,0.00021917,2]
[366861183,1750524439746,-467.90001521,0.00021917,2]
[366861184,1750524439768,-460.0,0.00021917,2]
[366861185,1750524439788,-469.71192103,0.00021917,2]
[366861186,1750524439808,-518.86154578,0.00021917,2]
[366861187,1750524439828,-309.33267516,0.00021917,2]
[366861188,1750524439849,-434.34921623,0.00021917,2]
[366861189,1750524439870,-460.0,0.00021917,2]
[366861190,1750524439890,-336.04756319,0.00021917,2]
[366861191,1750524439910,-466.0369356,0.00021917,2]
[366861192,1750524439930,-545.5797629,0.00021917,2]
[366861193,1750524439952,-460.0,0.00021917,2]
[366861194,1750524439973,-460.0,0.00021917,2]
[366861195,1750524439994,-388.53166402,0.00021917,2]
[366861196,1750524440015,-460.0,0.00021917,2]
[366861197,1750524440036,-360.59074697,0.00021917,2]
[366861198,1750524440060,-460.0,0.00021917,2]
[366861199,1750524440080,-1012.06478186,0.00021917,2]
[366861200,1750524440101,-470.79875057,0.00021917,2]
[366861201,1750524440122,-460.0,0.00021917,2]
[366861202,1750524440144,-460.0,0.00021917,2]
[366861203,1750524440249,-460.0,0.00021917,2]
[366861204,1750524440275,-273.84009724,0.00021917,2]
[366861205,1750524440297,-460.0,0.00021917,2]
[366861206,1750524440318,-378.16820902,0.00021917,2]
[366861207,1750524440340,-460.0,0.00021917,2]
[366861208,1750524440362,-460.0,0.00021917,2]
[366861209,1750524440383,-460.0,0.00021917,2]
[366861210,1750524440404,-460.0,0.00021917,2]
[366861211,1750524440425,-460.0,0.00021917,2]
[366861212,1750524440447,-469.26030627,0.00021917,2]
[366861213,1750524440469,-500.0,0.00021917,2]
[366861214,1750524440490,-500.0,0.00021917,2]
[366861215,1750524440510,-500.0,0.00021917,2]
[366861216,1750524440531,-504.41932248,0.00021917,2]
[366861217,1750524440553,-460.0,0.00021917,2]
[366861218,1750524440575,-460.0,0.00021917,2]
[366861219,1750524440596,-460.0,0.00021917,2]
[366861220,1750524440617,-460.0,0.00021917,2]
[366861221,1750524440642,-460.0,0.00021917,2]
[366861222,1750524440664,-460.0,0.00021917,2]
[366861223,1750524440685,-460.0,0.00021917,2]
[366861224,1750524440707,-460.0,0.00021917,2]
[366861225,1750524440741,-460.0,0.00021917,2]
[366861226,1750524440765,-460.0,0.00021917,2]
[366861227,1750524440790,-460.0,0.00021917,2]
[366861228,1750524440813,-297.1,0.00021917,2]
[366861229,1750524440836,-460.0,0.00021917,2]
[366861230,1750524440858,-460.0,0.00021917,2]
[366861231,1750524440880,-460.0,0.00021917,2]
[366861232,1750524440903,-460.0,0.00021917,2]
[366861233,1750524440925,-460.0,0.00021917,2]
[366861234,1750524440947,-463.63106265,0.00021917,2]
[366861235,1750524440969,-460.0,0.00021917,2]
[366861236,1750524440991,-460.0,0.00021917,2]
[366861237,1750524441012,-460.0,0.00021917,2]
[366861238,1750524441035,-460.0,0.00021917,2]
[366861239,1750524441064,-460.0,0.00021917,2]
[366861240,1750524441085,-460.0,0.00021917,2]
[366861241,1750524441109,-460.0,0.00021917,2]
[366861242,1750524441131,-460.0,0.00021917,2]
[366861243,1750524441155,-462.74187647,0.00021917,2]
[366861244,1750524441179,-460.0,0.00021917,2]
[366861245,1750524441202,-471.96896082,0.00021917,2]
[366861246,1750524441225,-460.0,0.00021917,2]
[366861247,1750524441248,-460.0,0.00021917,2]
[366861248,1750524441269,-460.0,0.00021917,2]
[366861249,1750524441292,-460.0,0.00021917,2]
[366861250,1750524441313,-460.0,0.00021917,2]
[366861251,1750524441335,-460.0,0.00021917,2]
[366861252,1750524441356,-460.0,0.00021917,2]
[366861253,1750524441378,-460.0,0.00021917,2]
[366861254,1750524441399,-460.0,0.00021917,2]
[366861255,1750524441420,-486.85903327,0.00021917,2]
[366861256,1750524441443,-542.67142026,0.00021917,2]
[366861257,1750524441466,-460.0,0.00021917,2]
[366861258,1750524441487,-460.0,0.00021917,2]
[366861259,1750524441509,-460.0,0.00021917,2]
[366861260,1750524441529,-44.15056279,0.00021917,2]
[366861261,1750524441598,-375.41,0.00021907,10]
[366861262,1750524441619,-415.84943721,0.00021917,2]
[366861263,1750524441640,-460.0,0.00021917,2]
[366861264,1750524441661,-460.0,0.00021917,2]
[366861265,1750524441683,-460.0,0.00021917,2]
[366861266,1750524441704,-460.0,0.00021917,2]
[366861267,1750524441724,-460.0,0.00021917,2]
[366861268,1750524441745,-226.66770349,0.00021917,2]
[366861269,1750524441766,-174.81269628,0.00021917,2]
[366861270,1750524441787,-460.0,0.00021917,2]
[366861271,1750524441808,-435.0952011,0.00021917,2]
[366861272,1750524441827,-460.0,0.00021917,2]
[366861273,1750524441847,-427.02954553,0.00021917,2]
[366861274,1750524441868,-460.0,0.00021917,2]
[366861275,1750524441889,-460.0,0.00021917,2]
[366861276,1750524441909,-471.35509686,0.00021917,2]
[366861277,1750524441931,-460.0,0.00021917,2]
[366861278,1750524441952,-465.49297519,0.00021917,2]
[366861279,1750524441975,-460.0,0.00021917,2]
[366861280,1750524441997,-460.0,0.00021917,2]
[366861281,1750524442017,-460.0,0.00021917,2]
[366861282,1750524442038,-460.0,0.00021917,2]
[366861283,1750524442062,-203.83375343,0.00021917,2]
[366861284,1750524442083,-460.0,0.00021917,2]
[366861285,1750524442103,-460.0,0.00021917,2]
[366861286,1750524442123,-460.0,0.00021917,2]
[366861287,1750524442145,-470.2194395,0.00021917,2]
[366861288,1750524442166,-460.0,0.00021917,2]
[366861289,1750524442187,-460.0,0.00021917,2]
[366861290,1750524442208,-424.96095153,0.00021917,2]
[366861291,1750524442233,-460.0,0.00021917,2]
[366861292,1750524442254,-460.0,0.00021917,2]
[366861293,1750524442276,-460.0,0.00021917,2]
[366861294,1750524442299,-356.15170605,0.00021917,2]
[366861295,1750524442320,-460.0,0.00021917,2]
[366861296,1750524442343,-209.42003736,0.00021917,2]
[366861297,1750524442449,-460.0,0.00021917,2]
[366861298,1750524442490,-460.0,0.00021917,2]
[366861299,1750524442512,-468.26576622,0.00021917,2]
[366861300,1750524442534,-460.0,0.00021917,2]
[366861301,1750524442556,-460.0,0.00021917,2]
[366861302,1750524442577,-460.0,0.00021917,2]
[366861303,1750524442598,-460.0,0.00021917,2]
[366861304,1750524442625,-460.0,0.00021917,2]
[366861305,1750524442646,-460.0,0.00021917,2]
[366861306,1750524442668,-460.0,0.00021917,2]
[366861307,1750524442688,-460.0,0.00021917,2]
[366861308,1750524442710,-460.0,0.00021917,2]
[366861309,1750524442731,-460.0,0.00021917,2]
[366861310,1750524442751,-472.95627672,0.00021917,2]
[366861311,1750524442771,-460.0,0.00021917,2]
[366861312,1750524442792,-460.0,0.00021917,2]
[366861313,1750524442812,-460.0,0.00021917,2]
[366861314,1750524442833,-460.0,0.00021917,2]
[366861315,1750524442854,-460.0,0.00021917,2]
[366861316,1750524442874,-460.0,0.00021917,2]
[366861317,1750524442894,-404.83180233,0.00021917,2]
[366861318,1750524442915,-460.0,0.00021917,2]
[366861319,1750524442936,-460.0,0.00021917,2]
[366861320,1750524442958,-460.0,0.00021917,2]
[366861321,1750524442979,-460.0,0.00021917,2]
[366861322,1750524443000,-460.0,0.00021917,2]
[366861323,1750524443022,-460.0,0.00021917,2]
[366861324,1750524443044,-460.0,0.00021917,2]
[366861325,1750524443069,-460.0,0.00021917,2]
[366861326,1750524443092,-460.0,0.00021917,2]
[366861327,1750524443115,-460.0,0.00021917,2]
[366861328,1750524443141,-259.4,0.00021917,2]
[366861329,1750524443165,-460.0,0.00021917,2]
[366861330,1750524443187,-460.0,0.00021917,2]
[366861331,1750524443209,-460.0,0.00021917,2]
[366861332,1750524443231,-460.0,0.00021917,2]
[366861333,1750524443253,-312.96308561,0.00021917,2]
[366861334,1750524443275,-500.0,0.00021917,2]
[366861335,1750524443297,-500.0,0.00021917,2]
[366861336,1750524443318,-508.54215298,0.00021917,2]
[366861337,1750524443339,-460.0,0.00021917,2]
[366861338,1750524443361,-460.0,0.00021917,2]
[366861339,1750524443382,-460.0,0.00021917,2]
[366861340,1750524443403,-460.0,0.00021917,2]
[366861341,1750524443425,-460.0,0.00021917,2]
[366861342,1750524443448,-460.0,0.00021917,2]
[366861343,1750524443469,-460.0,0.00021917,2]
[366861344,1750524443491,-460.0,0.00021917,2]
[366861345,1750524443512,-460.0,0.00021917,2]
[366861346,1750524443533,-460.0,0.00021917,2]
[366861347,1750524443554,-460.0,0.00021917,2]
[366861348,1750524443576,-602.49,0.00021917,2]
[366861349,1750524443597,-462.57957504,0.00021917,2]